fUST/lending_fUST_20250630
["ID","MTS","AMOUNT","RATE_DAILY","PERIOD"]
[368605017,1751229044950,-460.0,0.00019157,2]
[368605018,1751229044960,-460.0,0.00019157,2]
[368605019,1751229044970,-460.0,0.00019157,2]
[368605020,1751229044980,-460.0,0.00019157,2]
[368605021,1751229044989,-905.04,0.00019157,2]
[368605022,1751229045000,-544.56,0.00019157,2]
[368605023,1751229045009,-460.0,0.00019157,2]
[368605024,1751229045019,-460.0,0.00019157,2]
[368605025,1751229045028,-460.0,0.00019157,2]
[368605026,1751229045038,-460.0,0.00019157,2]
[368605027,1751229045047,-460.0,0.00019157,2]
[368605028,1751229045057,-500.0,0.00019158,2]
[368605029,1751229045067,-502.29752276,0.00019158,2]
[368605030,1751229045076,-500.0,0.00019158,2]
[368605031,1751229045086,-500.0,0.00019158,2]
[368605032,1751229045096,-460.0,0.00019158,2]
[368605033,1751229045107,-460.0,0.00019158,2]
[368605034,1751229045116,-394.37,0.00019158,2]
[368605035,1751229045126,-554.2,0.00019158,2]
[368605036,1751229045135,-460.0,0.00019158,2]
[368605037,1751229045145,-460.0,0.00019158,2]
[368605038,1751229045154,-460.0,0.00019158,2]
[368605039,1751229045164,-261.25,0.00019158,2]
[368605040,1751229045173,-1055.91,0.00019158,2]
[368605041,1751229045183,-460.0,0.00019158,2]
[368605042,1751229045193,-460.0,0.00019158,2]
[368605043,1751229045203,-476.15,0.00019158,2]
[368605044,1751229045213,-460.0,0.00019158,2]
[368605045,1751229045222,-475.4,0.00019158,2]
[368605046,1751229045232,-868.93,0.00019158,2]
[368605047,1751229045241,-460.0,0.00019158,2]
[368605048,1751229045251,-460.0,0.00019158,2]
[368605049,1751229045260,-481.62,0.00019158,2]
[368605050,1751229045270,-1519.71,0.00019158,2]
[368605051,1751229045279,-460.0,0.00019158,2]
[368605052,1751229045290,-460.0,0.00019158,2]
[368605053,1751229045300,-677.78,0.00019158,2]
[368605054,1751229045309,-460.0,0.00019158,2]
[368605055,1751229045319,-1228.96,0.00019158,2]
[368605056,1751229045328,-2966.86,0.00019158,2]
[368605057,1751229045338,-488.16,0.00019158,2]
[368605058,1751229045347,-667.46,0.00019158,2]
[368605059,1751229045356,-696.8,0.00019158,2]
[368605060,1751229045365,-3718.65,0.00019158,2]
[368605061,1751229045375,-878.99,0.00019158,2]
[368605062,1751229045384,-1319.01,0.00019158,2]
[368605063,1751229045393,-460.0,0.00019159,2]
[368605064,1751229045402,-460.0,0.00019159,2]
[368605065,1751229045411,-460.0,0.00019159,2]
[368605066,1751229045420,-460.0,0.00019159,2]
[368605067,1751229045429,-460.0,0.00019159,2]
[368605068,1751229045439,-460.0,0.00019159,2]
[368605069,1751229045448,-232.36,0.00019159,2]
[368605070,1751229045457,-460.0,0.00019159,2]
[368605071,1751229045467,-460.0,0.00019159,2]
[368605072,1751229045476,-676.01,0.00019159,2]
[368605073,1751229045486,-460.0,0.00019159,2]
[368605074,1751229045496,-550.52,0.00019159,2]
[368605075,1751229045505,-460.0,0.00019159,2]
[368605076,1751229045514,-538.85,0.00019161,2]
[368605077,1751229045524,-514.47,0.00019161,2]
[368605078,1751229045533,-460.0,0.00019161,2]
[368605079,1751229045543,-460.0,0.00019161,2]
[368605080,1751229045552,-460.0,0.00019161,2]
[368605081,1751229045561,-626.38,0.00019161,2]
[368605082,1751229045571,-492.2,0.00019162,2]
[368605083,1751229045580,-460.0,0.00019162,2]
[368605084,1751229045589,-10914.20244927,0.00019171,2]
[368605085,1751229045599,-748.280903,0.00019178,2]
[368605086,1751229045608,-500.0,0.00019181,2]
[368605087,1751229045617,-500.0,0.00019181,2]
[368605088,1751229045627,-290.33249283,0.00019181,2]
[368605089,1751229045637,-162.38973027,0.00019203,2]
[368605097,1751229586041,2584.9614227,0.00017335,2]
[368605098,1751229586066,18758.5310325,0.00017335,2]
[368605100,1751229717223,415.670011,0.00013699,2]
[368605136,1751230232391,-300.0,0.0001833,2]
[368605137,1751230232401,-300.0,0.0001833,2]
[368605139,1751230232411,-460.0,0.0001833,2]
[368605141,1751230232421,-460.0,0.00018331,2]
[368605143,1751230232430,-460.0,0.00018331,2]
[368605144,1751230232439,-460.0,0.00018331,2]
[368605145,1751230232448,-460.0,0.00018331,2]
[368605146,1751230232458,-460.0,0.00018331,2]
[368605147,1751230232467,-460.0,0.00018331,2]
[368605148,1751230232478,-270.02986216,0.00018331,2]
[368605149,1751230232489,-590.36755974,0.00018331,2]
[368605150,1751230232498,-460.0,0.00018331,2]
[368605151,1751230232511,-460.0,0.00018331,2]
[368605152,1751230232520,-1300.76,0.00018331,2]
[368605153,1751230232532,-548.96,0.00018331,2]
[368605154,1751230232545,-2669.64,0.00018331,2]
[368605155,1751230232556,-460.0,0.00018331,2]
[368605156,1751230232565,-460.0,0.00018331,2]
[368605157,1751230232575,-80.94907351,0.00018331,2]
[368605166,1751230238343,-460.0,0.0001833,2]
[368605167,1751230238353,-91.74005784,0.00018331,2]
[368605168,1751230238364,-460.0,0.00018331,2]
[368605169,1751230238373,-2871.13,0.00018331,2]
[368605170,1751230238383,-460.0,0.00018331,2]
[368605171,1751230238393,-581.33,0.00018331,2]
[368605172,1751230238402,-460.0,0.00018331,2]
[368605173,1751230238411,-460.0,0.00018331,2]
[368605174,1751230238421,-504.3,0.00018331,2]
[368605175,1751230238430,-460.0,0.00018331,2]
[368605176,1751230238439,-3312.27,0.00018331,2]
[368605177,1751230238449,-2726.22,0.00018331,2]
[368605178,1751230238458,-460.0,0.00018331,2]
[368605179,1751230238468,-3016.84,0.00018331,2]
[368605180,1751230238478,-460.0,0.00018331,2]
[368605181,1751230238487,-460.0,0.00018331,2]
[368605182,1751230238497,-460.0,0.00018331,2]
[368605183,1751230238507,-460.0,0.00018331,2]
[368605184,1751230238516,-520.82,0.00018331,2]
[368605185,1751230238526,-1538.42,0.00018331,2]
[368605186,1751230238535,-460.0,0.00018331,2]
[368605187,1751230238545,-445.18,0.00018331,2]
[368605188,1751230238554,-1985.43,0.00018331,2]
[368605189,1751230238565,-460.0,0.00018331,2]
[368605190,1751230238574,-515.02,0.00018331,2]
[368605191,1751230238584,-1490.99,0.00018331,2]
[368605192,1751230238593,-460.0,0.00018331,2]
[368605193,1751230238603,-460.0,0.00018331,2]
[368605194,1751230238613,-529.49,0.00018331,2]
[368605195,1751230238622,-239.6699206,0.00018331,2]
[368605196,1751230238632,-460.0,0.00018331,2]
[368605197,1751230238642,-391.16,0.00018331,2]
[368605198,1751230238652,-172.41499559,0.00018331,2]
[368605199,1751230238662,-460.0,0.00018331,2]
[368605200,1751230238672,-460.0,0.00018331,2]
[368605201,1751230238681,-460.0,0.00018331,2]
[368605202,1751230238690,-460.0,0.00018332,2]
[368605203,1751230238700,-460.0,0.00018332,2]
[368605204,1751230238709,-460.0,0.00018332,2]
[368605205,1751230238718,-460.0,0.00018332,2]
[368605206,1751230238729,-460.0,0.00018332,2]
[368605207,1751230238739,-460.0,0.00018332,2]
[368605208,1751230238750,-460.0,0.00018332,2]
[368605209,1751230238760,-1211.78,0.00018332,2]
[368605210,1751230238770,-460.0,0.00018332,2]
[368605211,1751230238780,-460.0,0.00018332,2]
[368605212,1751230238790,-460.0,0.00018332,2]
[368605213,1751230238799,-460.0,0.00018332,2]
[368605214,1751230238815,-824.24,0.00018332,2]
[368605215,1751230238824,-460.0,0.00018332,2]
[368605216,1751230238834,-460.0,0.00018332,2]
[368605217,1751230238844,-460.0,0.00018332,2]
[368605218,1751230238854,-553.06,0.00018332,2]
[368605219,1751230238863,-460.0,0.00018332,2]
[368605220,1751230238872,-530.53,0.00018332,2]
[368605221,1751230238882,-460.0,0.00018332,2]
[368605222,1751230238891,-1100.5,0.00018332,2]
[368605223,1751230238901,-502.99,0.00018332,2]
[368605224,1751230238910,-891.82,0.00018332,2]
[368605225,1751230238920,-460.0,0.00018332,2]
[368605226,1751230238929,-460.0,0.00018332,2]
[368605227,1751230238939,-796.58,0.00018332,2]
[368605228,1751230238948,-460.0,0.00018332,2]
[368605229,1751230238957,-460.0,0.00018332,2]
[368605230,1751230238969,-581.0,0.00018332,2]
[368605231,1751230238978,-460.0,0.00018332,2]
[368605232,1751230238988,-4058.09,0.00018332,2]
[368605233,1751230238997,-733.28,0.00018332,2]
[368605234,1751230239007,-801.21,0.00018332,2]
[368605235,1751230239016,-1408.45,0.00018332,2]
[368605236,1751230239026,-460.0,0.00018332,2]
[368605237,1751230239036,-460.0,0.00018332,2]
[368605238,1751230239045,-460.0,0.00018332,2]
[368605239,1751230239055,-1055.83,0.00018332,2]
[368605240,1751230239065,-460.0,0.00018333,2]
[368605241,1751230239074,-460.0,0.00018333,2]
[368605242,1751230239083,-460.0,0.00018333,2]
[368605243,1751230239093,-460.0,0.00018333,2]
[368605244,1751230239102,-520.06420144,0.00018333,2]
[368605245,1751230239112,-272.86062576,0.00018333,2]
[368605246,1751230239121,-460.0,0.00018333,2]
[368605247,1751230239131,-460.0,0.00018333,2]
[368605248,1751230239141,-460.0,0.00018333,2]
[368605249,1751230239150,-460.0,0.00018333,2]
[368605250,1751230239160,-504.41,0.00018333,2]
[368605251,1751230239170,-621.98,0.00018333,2]
[368605252,1751230239179,-460.0,0.00018333,2]
[368605253,1751230239189,-460.0,0.00018333,2]
[368605254,1751230239198,-460.0,0.00018333,2]
[368605255,1751230239207,-460.0,0.00018333,2]
[368605256,1751230239216,-460.0,0.00018333,2]
[368605257,1751230239226,-460.0,0.00018333,2]
[368605258,1751230239235,-839.52,0.00018333,2]
[368605259,1751230239245,-503.31,0.00018333,2]
[368605260,1751230239254,-460.0,0.00018333,2]
[368605261,1751230239264,-619.75,0.00018333,2]
[368605262,1751230239273,-4324.34,0.00018333,2]
[368605263,1751230239283,-460.0,0.00018333,2]
[368605264,1751230239292,-1441.65,0.00018333,2]
[368605265,1751230239301,-460.0,0.00018333,2]
[368605266,1751230239311,-460.0,0.00018333,2]
[368605267,1751230239321,-460.0,0.00018333,2]
[368605268,1751230239331,-460.0,0.00018333,2]
[368605269,1751230239340,-460.0,0.00018333,2]
[368605270,1751230239349,-460.0,0.00018333,2]
[368605271,1751230239358,-460.0,0.00018333,2]
[368605272,1751230239368,-460.0,0.00018333,2]
[368605273,1751230239377,-460.0,0.00018333,2]
[368605274,1751230239387,-1304.03,0.00018334,2]
[368605275,1751230239396,-460.0,0.00018334,2]
[368605276,1751230239406,-1695.2,0.00018334,2]
[368605277,1751230239415,-460.0,0.00018334,2]
[368605278,1751230239425,-1513.69,0.00018334,2]
[368605279,1751230239435,-241.33062452,0.00018335,2]
[368605280,1751230239444,-460.0,0.00018335,2]
[368605281,1751230239454,-460.0,0.00018335,2]
[368605282,1751230239463,-588.15,0.00018335,2]
[368605283,1751230239472,-460.0,0.00018335,2]
[368605284,1751230239482,-460.0,0.00018335,2]
[368605285,1751230239492,-269.68184967,0.00018335,2]
[368605286,1751230239502,-460.0,0.00018335,2]
[368605287,1751230239511,-460.0,0.00018335,2]
[368605288,1751230239520,-460.0,0.00018335,2]
[368605289,1751230239530,-460.0,0.00018335,2]
[368605290,1751230239539,-460.0,0.00018335,2]
[368605291,1751230239548,-460.0,0.00018336,2]
[368605292,1751230239557,-460.0,0.00018336,2]
[368605293,1751230239567,-460.0,0.00018336,2]
[368605294,1751230239576,-460.0,0.00018336,2]
[368605295,1751230239585,-460.0,0.00018336,2]
[368605296,1751230239594,-460.0,0.00018336,2]
[368605297,1751230239603,-630.61,0.00018336,2]
[368605298,1751230239613,-432.8688382,0.00018336,2]
[368605299,1751230239622,-460.0,0.00018336,2]
[368605300,1751230239631,-460.0,0.00018336,2]
[368605301,1751230239641,-460.0,0.00018339,2]
[368605302,1751230239650,-441.5,0.00018597,3]
[368605303,1751230239659,-280.0,0.00018599,3]
[368605304,1751230239669,-840.04,0.00018599,3]
[368605305,1751230239678,-460.0,0.00018604,2]
[368605306,1751230239688,-460.0,0.00018605,2]
[368605307,1751230239697,-460.0,0.00018605,2]
[368605308,1751230239706,-1300.76,0.00018605,2]
[368605309,1751230239715,-548.96,0.00018605,2]
[368605310,1751230239725,-2669.64,0.00018605,2]
[368605311,1751230239734,-460.0,0.00018605,2]
[368605312,1751230239743,-460.0,0.00018605,2]
[368605313,1751230239752,-2871.13,0.00018605,2]
[368605314,1751230239762,-460.0,0.00018605,2]
[368605315,1751230239771,-581.33,0.00018605,2]
[368605316,1751230239781,-460.0,0.00018605,2]
[368605317,1751230239790,-460.0,0.00018605,2]
[368605318,1751230239800,-504.3,0.00018605,2]
[368605319,1751230239814,-460.0,0.00018605,2]
[368605320,1751230239823,-3312.27,0.00018605,2]
[368605321,1751230239832,-2726.22,0.00018605,2]
[368605322,1751230239842,-3016.84,0.00018605,2]
[368605323,1751230239851,-460.0,0.00018605,2]
[368605324,1751230239861,-460.0,0.00018605,2]
[368605325,1751230239870,-520.82,0.00018605,2]
[368605326,1751230239879,-466.33208445,0.00018605,2]
[368605331,1751230240048,-1072.08791555,0.00018605,2]
[368605332,1751230240058,-1985.43,0.00018605,2]
[368605333,1751230240069,-460.0,0.00018605,2]
[368605334,1751230240079,-515.02,0.00018605,2]
[368605335,1751230240088,-1490.99,0.00018605,2]
[368605336,1751230240098,-460.0,0.00018605,2]
[368605337,1751230240109,-460.0,0.00018605,2]
[368605338,1751230240118,-529.49,0.00018605,2]
[368605339,1751230240127,-460.0,0.00018605,2]
[368605340,1751230240137,-460.0,0.00018605,2]
[368605341,1751230240147,-460.0,0.00018605,2]
[368605342,1751230240157,-460.0,0.00018606,2]
[368605343,1751230240167,-460.0,0.00018606,2]
[368605344,1751230240177,-460.0,0.00018606,2]
[368605345,1751230240186,-460.0,0.00018606,2]
[368605346,1751230240196,-460.0,0.00018606,2]
[368605348,1751230240205,-1211.78,0.00018606,2]
[368605349,1751230240215,-460.0,0.00018606,2]
[368605350,1751230240225,-460.0,0.00018606,2]
[368605351,1751230240234,-460.0,0.00018606,2]
[368605352,1751230240245,-460.0,0.00018606,2]
[368605353,1751230240255,-824.24,0.00018606,2]
[368605355,1751230240264,-460.0,0.00018606,2]
[368605356,1751230240273,-188.10710508,0.00018606,2]
[368605357,1751230240283,-460.0,0.00018606,2]
[368605358,1751230240292,-553.06,0.00018606,2]
[368605359,1751230240303,-460.0,0.00018606,2]
[368605360,1751230240312,-530.53,0.00018606,2]
[368605361,1751230240322,-460.0,0.00018606,2]
[368605362,1751230240332,-1100.5,0.00018606,2]
[368605363,1751230240341,-502.99,0.00018606,2]
[368605364,1751230240351,-891.82,0.00018606,2]
[368605365,1751230240360,-460.0,0.00018606,2]
[368605366,1751230240370,-460.0,0.00018606,2]
[368605367,1751230240379,-796.58,0.00018606,2]
[368605368,1751230240389,-460.0,0.00018606,2]
[368605369,1751230240399,-581.0,0.00018606,2]
[368605370,1751230240408,-460.0,0.00018606,2]
[368605371,1751230240417,-4058.09,0.00018606,2]
[368605372,1751230240427,-733.28,0.00018606,2]
[368605373,1751230240436,-801.21,0.00018606,2]
[368605374,1751230240446,-1408.45,0.00018606,2]
[368605375,1751230240455,-460.0,0.00018606,2]
[368605376,1751230240464,-460.0,0.00018606,2]
[368605377,1751230240473,-460.0,0.00018606,2]
[368605378,1751230240483,-1055.83,0.00018606,2]
[368605379,1751230240492,-477.41,0.00018607,2]
[368605380,1751230240501,-460.0,0.00018607,2]
[368605381,1751230240511,-460.0,0.00018607,2]
[368605382,1751230240520,-460.0,0.00018607,2]
[368605383,1751230240529,-460.0,0.00018607,2]
[368605384,1751230240539,-460.0,0.00018607,2]
[368605385,1751230240548,-504.41,0.00018607,2]
[368605386,1751230240558,-621.98,0.00018607,2]
[368605387,1751230240567,-460.0,0.00018607,2]
[368605388,1751230240576,-460.0,0.00018607,2]
[368605389,1751230240586,-460.0,0.00018607,2]
[368605390,1751230240595,-839.52,0.00018607,2]
[368605391,1751230240605,-503.31,0.00018607,2]
[368605392,1751230240614,-460.0,0.00018607,2]
[368605393,1751230240624,-619.75,0.00018607,2]
[368605394,1751230240633,-4324.34,0.00018607,2]
[368605395,1751230240643,-504.37,0.00018607,2]
[368605396,1751230240652,-1441.65,0.00018607,2]
[368605397,1751230240662,-460.0,0.00018607,2]
[368605398,1751230240671,-460.0,0.00018607,2]
[368605399,1751230240681,-460.0,0.00018607,2]
[368605400,1751230240690,-460.0,0.00018607,2]
[368605401,1751230240700,-460.0,0.00018607,2]
[368605402,1751230240710,-154.2078317,0.00018607,2]
[368605403,1751230240875,-460.0,0.00018607,2]
[368605404,1751230240886,-1304.03,0.00018608,2]
[368605405,1751230240896,-1695.2,0.00018608,2]
[368605406,1751230240905,-460.0,0.00018608,2]
[368605407,1751230240915,-1513.69,0.00018608,2]
[368605408,1751230240925,-588.15,0.00018609,2]
[368605409,1751230240934,-460.0,0.00018609,2]
[368605410,1751230240944,-460.0,0.00018609,2]
[368605411,1751230240954,-460.0,0.00018609,2]
[368605412,1751230240964,-555.24,0.0001861,2]
[368605413,1751230240973,-461.06835683,0.0001861,2]
[368605414,1751230240983,-460.0,0.0001861,2]
[368605415,1751230240992,-630.61,0.0001861,2]
[368605416,1751230241001,-460.0,0.0001861,2]
[368605417,1751230241011,-460.0,0.00018613,2]
[368605418,1751230241021,-1471.63683534,0.00018783,2]
[368605419,1751230241030,-450.54697694,0.00018878,2]
[368605420,1751230241039,-460.0,0.00018879,2]
[368605421,1751230241049,-460.0,0.00018879,2]
[368605422,1751230241058,-1300.76,0.00018879,2]
[368605423,1751230241067,-548.96,0.00018879,2]
[368605424,1751230241077,-2669.64,0.00018879,2]
[368605425,1751230241087,-460.0,0.00018879,2]
[368605426,1751230241096,-2871.13,0.00018879,2]
[368605427,1751230241106,-581.33,0.00018879,2]
[368605428,1751230241115,-460.0,0.00018879,2]
[368605429,1751230241125,-504.3,0.00018879,2]
[368605430,1751230241134,-460.0,0.00018879,2]
[368605431,1751230241143,-3312.27,0.00018879,2]
[368605432,1751230241153,-2726.22,0.00018879,2]
[368605433,1751230241163,-3016.84,0.00018879,2]
[368605434,1751230241172,-460.0,0.00018879,2]
[368605435,1751230241181,-460.0,0.00018879,2]
[368605436,1751230241190,-520.82,0.00018879,2]
[368605437,1751230241200,-1538.42,0.00018879,2]
[368605438,1751230241209,-1985.43,0.00018879,2]
[368605439,1751230241218,-460.0,0.00018879,2]
[368605440,1751230241228,-515.02,0.00018879,2]
[368605441,1751230241237,-1490.99,0.00018879,2]
[368605442,1751230241247,-460.0,0.00018879,2]
[368605443,1751230241256,-460.0,0.00018879,2]
[368605444,1751230241265,-529.49,0.00018879,2]
[368605445,1751230241275,-460.0,0.00018879,2]
[368605446,1751230241284,-460.0,0.00018879,2]
[368605447,1751230241293,-460.0,0.0001888,2]
[368605448,1751230241303,-460.0,0.0001888,2]
[368605449,1751230241313,-460.0,0.0001888,2]
[368605450,1751230241322,-460.0,0.0001888,2]
[368605451,1751230241332,-460.0,0.0001888,2]
[368605452,1751230241341,-1211.78,0.0001888,2]
[368605453,1751230241350,-460.0,0.0001888,2]
[368605454,1751230241359,-460.0,0.0001888,2]
[368605455,1751230241369,-460.0,0.0001888,2]
[368605456,1751230241378,-824.24,0.0001888,2]
[368605457,1751230241387,-460.0,0.0001888,2]
[368605458,1751230241396,-460.0,0.0001888,2]
[368605459,1751230241406,-553.06,0.0001888,2]
[368605460,1751230241416,-460.0,0.0001888,2]
[368605461,1751230241425,-530.53,0.0001888,2]
[368605462,1751230241435,-460.0,0.0001888,2]
[368605463,1751230241444,-1100.5,0.0001888,2]
[368605464,1751230241453,-502.99,0.0001888,2]
[368605465,1751230241463,-891.82,0.0001888,2]
[368605466,1751230241472,-460.0,0.0001888,2]
[368605467,1751230241481,-460.0,0.0001888,2]
[368605468,1751230241491,-796.58,0.0001888,2]
[368605469,1751230241500,-460.0,0.0001888,2]
[368605470,1751230241510,-581.0,0.0001888,2]
[368605471,1751230241519,-460.0,0.0001888,2]
[368605472,1751230241528,-4058.09,0.0001888,2]
[368605473,1751230241537,-733.28,0.0001888,2]
[368605474,1751230241547,-801.21,0.0001888,2]
[368605475,1751230241557,-1408.45,0.0001888,2]
[368605476,1751230241567,-460.0,0.0001888,2]
[368605477,1751230241576,-460.0,0.0001888,2]
[368605478,1751230241586,-460.0,0.0001888,2]
[368605479,1751230241595,-1055.83,0.0001888,2]
[368605480,1751230241604,-387.98,0.00018881,2]
[368605481,1751230241613,-460.0,0.00018881,2]
[368605482,1751230241622,-460.0,0.00018881,2]
[368605483,1751230241632,-523.47,0.00018881,2]
[368605484,1751230241641,-504.41,0.00018881,2]
[368605485,1751230241651,-621.98,0.00018881,2]
[368605486,1751230241660,-360.77019711,0.00018881,2]
[368605487,1751230241670,-460.0,0.00018881,2]
[368605488,1751230241680,-460.0,0.00018881,2]
[368605489,1751230241690,-839.52,0.00018881,2]
[368605490,1751230241700,-503.31,0.00018881,2]
[368605491,1751230241709,-460.0,0.00018881,2]
[368605492,1751230241719,-619.75,0.00018881,2]
[368605493,1751230241729,-4324.34,0.00018881,2]
[368605494,1751230241738,-1441.65,0.00018881,2]
[368605495,1751230241748,-460.0,0.00018881,2]
[368605496,1751230241757,-460.0,0.00018881,2]
[368605497,1751230241766,-460.0,0.00018881,2]
[368605498,1751230241776,-507.78,0.00018881,2]
[368605499,1751230241785,-1304.03,0.00018882,2]
[368605500,1751230241795,-1695.2,0.00018882,2]
[368605501,1751230241807,-460.0,0.00018882,2]
[368605502,1751230241817,-1513.69,0.00018882,2]
[368605503,1751230241827,-588.15,0.00018883,2]
[368605504,1751230241837,-460.0,0.00018883,2]
[368605505,1751230241849,-231.09849099,0.00018883,2]
[368605506,1751230241858,-460.0,0.00018884,2]
[368605507,1751230241868,-630.61,0.00018884,2]
[368605508,1751230241878,-4940.34060683,0.000189,2]
[368605509,1751230241889,-268.04051946,0.000189,2]
[368605510,1751230241899,-17876.73506449,0.00018922,2]
[368605511,1751230241909,-65639.0,0.00019,2]
[368605512,1751230241919,-1041.0,0.00019022,2]
[368605513,1751230241929,-4940.34060657,0.00019107,2]
[368605514,1751230241939,-366.235562,0.00019123,2]
[368605515,1751230241948,-366.235562,0.00019123,2]
[368605516,1751230241957,-366.235562,0.00019123,2]
[368605517,1751230241967,-336.5934734,0.00019123,2]
[368605518,1751230241976,-366.235562,0.00019123,2]
[368605519,1751230241986,-366.235562,0.00019123,2]
[368605520,1751230241995,-370.2996557,0.00019123,2]
[368605521,1751230242006,-366.235562,0.00019123,2]
[368605522,1751230242015,-366.235562,0.00019123,2]
[368605523,1751230242025,-1041.0,0.00019143,2]
[368605524,1751230242035,-460.0,0.00019153,2]
[368605525,1751230242044,-1300.76,0.00019153,2]
[368605526,1751230242054,-548.96,0.00019153,2]
[368605527,1751230242063,-2669.64,0.00019153,2]
[368605528,1751230242073,-460.0,0.00019153,2]
[368605529,1751230242083,-2871.13,0.00019153,2]
[368605530,1751230242092,-581.33,0.00019153,2]
[368605531,1751230242101,-572.23470244,0.00019153,2]
[368605532,1751230242111,-504.3,0.00019153,2]
[368605533,1751230242121,-460.0,0.00019153,2]
[368605534,1751230242131,-3312.27,0.00019153,2]
[368605535,1751230242142,-2726.22,0.00019153,2]
[368605536,1751230242153,-3016.84,0.00019153,2]
[368605537,1751230242163,-460.0,0.00019153,2]
[368605538,1751230242172,-460.0,0.00019153,2]
[368605539,1751230242182,-520.82,0.00019153,2]
[368605540,1751230242191,-1538.42,0.00019153,2]
[368605541,1751230242200,-1985.43,0.00019153,2]
[368605542,1751230242210,-222.85,0.00019153,2]
[368605543,1751230242219,-515.02,0.00019153,2]
[368605544,1751230242228,-1490.99,0.00019153,2]
[368605545,1751230242238,-460.0,0.00019153,2]
[368605546,1751230242248,-460.0,0.00019153,2]
[368605547,1751230242257,-529.49,0.00019153,2]
[368605548,1751230242267,-460.0,0.00019153,2]
[368605549,1751230242277,-460.0,0.00019154,2]
[368605550,1751230242287,-460.0,0.00019154,2]
[368605551,1751230242297,-460.0,0.00019154,2]
[368605552,1751230242306,-460.0,0.00019154,2]
[368605553,1751230242316,-460.0,0.00019154,2]
[368605554,1751230242325,-1211.78,0.00019154,2]
[368605555,1751230242335,-460.0,0.00019154,2]
[368605556,1751230242344,-460.0,0.00019154,2]
[368605557,1751230242353,-824.24,0.00019154,2]
[368605558,1751230242362,-460.0,0.00019154,2]
[368605559,1751230242371,-460.0,0.00019154,2]
[368605560,1751230242381,-553.06,0.00019154,2]
[368605561,1751230242391,-460.0,0.00019154,2]
[368605562,1751230242401,-530.53,0.00019154,2]
[368605563,1751230242411,-460.0,0.00019154,2]
[368605564,1751230242420,-1100.5,0.00019154,2]
[368605565,1751230242429,-502.99,0.00019154,2]
[368605566,1751230242439,-891.82,0.00019154,2]
[368605567,1751230242448,-460.0,0.00019154,2]
[368605568,1751230242460,-460.0,0.00019154,2]
[368605569,1751230242471,-796.58,0.00019154,2]
[368605570,1751230242480,-460.0,0.00019154,2]
[368605571,1751230242489,-581.0,0.00019154,2]
[368605572,1751230242498,-494.35,0.00019154,2]
[368605573,1751230242507,-4058.09,0.00019154,2]
[368605574,1751230242517,-733.28,0.00019154,2]
[368605575,1751230242526,-801.21,0.00019154,2]
[368605576,1751230242536,-1408.45,0.00019154,2]